[Event "Romanian Rapid Open 2022"]
[Site "Sebes"]
[Date "2022.12.02"]
[Round "6.12"]
[White "Baratosi, Daniel"]
[Black "Nastase, Robert-Paul"]
[Result "1/2-1/2"]
[ECO "B15"]
[WhiteElo "2335"]
[BlackElo "2229"]
[Annotator "TA"]
[PlyCount "138"]
[EventDate "2022.12.02"]
[EventType "rapid"]
[EventCountry "ROU"]
[SourceTitle "playchess.com"]
[Source "ChessBase"]
[SourceQuality "1"]
[TimeControl "600+5"]

{[%evp 9,138,20,28,27,25,25,33,0,0,-21,26,18,31,31,31,31,34,32,39,33,32,39,39,36,39,31,31,32,33,29,32,24,31,0,31,31,44,31,32,32,32,0,32,33,40,22,22,16,30,36,36,0,0,0,6,-34,-36,-30,-30,-84,67,67,133,132,114,93,88,60,79,70,68,72,108,91,108,70,108,108,129,0,74,0,0,0,0,0,41,46,51,51,51,41,68,46,54,30,46,39,47,48,55,55,53,57,66,43,60,58,66,43,51,51,66,66,70,59,66,33,41,33,33,0,0,0,98,0,0,0,105,0,0]} 1. e4 {[%emt 0:00:03]} c6 {[%emt 0:00:00]} 2. d4 {[%emt 0:00:06]} d5 {[%emt 0:00:01]} 3. Nc3 {[%emt 0:00:08]} dxe4 {[%emt 0:00:01]} 4. Nxe4 {[%emt 0:00:01]} Nf6 {[%emt 0:00:01]} 5. Qd3 {[%emt 0:00:05]} Nbd7 {[%emt 0:00:06]} 6. Nf3 {[%emt 0:00:02] Prevents e5. B15: Caro-Kann: 3 Nc3: 3...g6 and 3...dxe4 4 Nxe4 Nf6 5 Nxf6+ exf6.} Nxe4 {[%emt 0:00:01]} 7. Qxe4 {[%emt 0:00:01]} Nf6 {[%emt 0:00:01]} 8. Qe2 {[%emt 0:00:01] White is slightly better.} Bg4 {[%emt 0:00:23]} 9. c3 {[%emt 0:00:02]} e6 {[%emt 0:00:02]} (9... Qd5 $142) 10. g3 $11 {[%emt 0:00:13]} Bxf3 {[%emt 0:00:11]} 11. Qxf3 {[%emt 0:00:02]} Qd5 {[%emt 0:00:00]} 12. Bg2 {[%emt 0:00:11]} Qxf3 {[%emt 0:00:02]} 13. Bxf3 {[%emt 0:00:01] [#]} Be7 $146 {[%emt 0:00:00]} ({Predecessor:} 13... Bd6 14. O-O O-O 15. Rd1 Rac8 16. Be3 h6 17. c4 Rfd8 18. Kg2 Kf8 19. Rd3 b6 {½-½ (65) Melian,J (1978)-Etienne,A (1995) chess.com INT 2021}) 14. Ke2 {[%emt 0:00:14]} Nd5 {[%emt 0:00:11]} 15. h4 {[%emt 0:00:19]} h5 {[%emt 0:00:11]} 16. Re1 {[%emt 0:00:11]} O-O-O {[%emt 0:00:09]} 17. Kf1 {[%emt 0:00:10]} Bf6 {[%emt 0:00:05]} 18. Bd2 {[%emt 0:00:09][%cal Bc1d2,Bd2f4,Bf4g5][%mdl 32]} g6 {[%emt 0:00:04]} 19. Rad1 {[%emt 0:00:05]} Nb6 {[%emt 0:00:02][%cal Bd5b6,Bb6c4,Bc4a5,Ba5b3,Bb3c1][%mdl 32]} 20. Bf4 {[%emt 0:00:13]} Rd7 {[%emt 0:00:34]} 21. Ra1 {[%emt 0:01:57]} Nc4 {[%emt 0:00:34]} (21... Nd5 $5 {[%cal Rd5f4]}) 22. Re2 {[%emt 0:00:07]} Be7 {[%emt 0:00:40]} 23. a4 {[%emt 0:00:16]} Bd6 {[%emt 0:00:58]} 24. Bg5 {[%emt 0:00:46] This pair of bishops is nice.} Be7 {[%emt 0:00:02]} 25. Bf4 {[%emt 0:00:49]} Bd6 {[%emt 0:00:03]} 26. Bc1 {[%emt 0:00:32] a5 is the strong threat.} Na5 {[%emt 0:00:02]} 27. b4 {[%emt 0:01:07]} Nb3 {[%emt 0:00:01]} 28. Rb1 {[%emt 0:00:01]} Nxc1 29. Rxc1 {[%emt 0:00:00]} a6 {[%emt 0:00:10]} 30. b5 {[%emt 0:00:07]} axb5 {[%emt 0:00:05]} 31. axb5 {[%emt 0:00:01]} cxb5 {[%emt 0:00:06]} 32. Rb1 {[%emt 0:00:05]} (32. Ra2 $5 {[%cal Ra2a8]}) 32... b4 {[%emt 0:00:06]} 33. c4 {[%emt 0:00:16][%cal Bc3c4,Bc4c5][%mdl 32]} Be7 {[%emt 0:00:14]} 34. Ra2 {[%emt 0:00:31]} (34. d5 $11) 34... Bf6 $2 {[%emt 0:00:26]} (34... Rxd4 $2 35. Ra8+ Kc7 36. Rxh8 $18) (34... Kb8 $17 35. d5 e5) 35. Rxb4 $14 {[%emt 0:00:25]} Rc7 {[%emt 0:01:23]} (35... Kd8 $1 $14) 36. c5 $16 {[%emt 0:01:37]} Rd8 {[%emt 0:00:05] Inhibits d5.} 37. Ra8+ {[%emt 0:00:31]} Kd7 {[%emt 0:00:02]} 38. Raa4 {[%emt 0:00:02] White is more active.} Ke7 {[%emt 0:02:16]} 39. Ke2 {[%emt 0:00:10]} (39. Rxb7 Rxb7 40. Bxb7 Bxd4 $11) (39. Bxb7 Bxd4 $1 40. c6 e5 $11) 39... Rdd7 {[%emt 0:00:26]} 40. Rc4 $1 {[%emt 0:00:47]} Bg7 {[%emt 0:00:49]} 41. Rab4 {[%emt 0:00:03]} Kf6 {[%emt 0:00:10]} 42. Rb6 {[%emt 0:00:10] Black must now prevent d5.} Bf8 {[%emt 0:00:56]} 43. Bg2 {[%emt 0:00:11]} Kf5 {[%emt 0:00:31]} 44. d5 {[%emt 0:00:17]} (44. Rcb4 $16) 44... Rxc5 {[%emt 0:00:36]} (44... exd5 $2 {gets mated.} 45. Bh3+ Ke5 46. f4#) (44... Bxc5 $11 45. Rf4+ Ke5 46. dxe6 Bxb6 47. exd7 Rxd7) 45. Rf4+ {[%emt 0:00:35]} (45. dxe6 $16 fxe6 46. Bh3+ (46. Rxb7 Rxc4 47. Rxd7 Kf6 $11) (46. Rf4+ Ke5 $11) 46... Kf6 47. Rxe6+ Kg7 48. Rxc5 Bxc5 {[#]} 49. Rxg6+ $1 Kxg6 50. Bxd7) 45... Ke5 $11 {[%emt 0:00:04]} 46. Re4+ {[%emt 0:00:03]} Kf6 {[%emt 0:00:52]} 47. dxe6 {[%emt 0:00:04]} Re7 {[%emt 0:00:00][%cal Re7e6]} 48. exf7+ {[%emt 0:00:06]} Kxf7 {[%emt 0:00:02]} 49. Rxe7+ {[%emt 0:00:03]} Bxe7 {[%emt 0:00:01]} 50. Rxb7 $14 {[%emt 0:00:01][%mdl 4096] Endgame KRB-KRB} Re5+ {[%emt 0:00:03]} 51. Kd3 {[%emt 0:00:05]} Kf6 {[%emt 0:00:14]} 52. Bh3 {[%emt 0:00:11]} Rd5+ {[%emt 0:00:05]} 53. Ke2 {[%emt 0:00:06]} Re5+ {[%emt 0:00:03]} 54. Kf3 {[%emt 0:00:02]} Rd5 {[%emt 0:00:02]} 55. Rb6+ {[%emt 0:00:19]} Rd6 {[%emt 0:00:01]} 56. Rb3 {[%emt 0:00:00]} Rd8 {[%emt 0:00:04]} 57. Ke4 {[%emt 0:00:00]} Kg7 {[%emt 0:00:11]} 58. Rb7 {[%emt 0:00:00]} Kf6 {[%emt 0:00:02]} 59. Bf1 {[%emt 0:00:10]} Bc5 {[%emt 0:00:08]} 60. Rb2 {[%emt 0:00:06]} Rd4+ {[%emt 0:00:05]} 61. Kf3 {[%emt 0:00:02]} Rb4 {[%emt 0:00:01]} 62. Ra2 {[%emt 0:00:03]} Bd4 {[%emt 0:00:05]} 63. Bd3 {[%emt 0:00:02]} Rb2 {[%emt 0:00:05]} 64. Ra6+ {[%emt 0:00:04]} Bb6 {[%emt 0:00:08]} 65. Ke4 {[%emt 0:00:10]} Rb4+ {[%emt 0:00:07]} 66. Kf3 {[%emt 0:00:07]} Rb3 {[%emt 0:00:04]} (66... Rb2 $11) 67. Ke4 {[%emt 0:00:05]} (67. Ke2 $16) 67... Rb4+ $11 {[%emt 0:00:01]} 68. Kf3 {[%emt 0:00:02]} Rb3 {[%emt 0:00:01]} (68... Rb2 $11 {remains equal.}) 69. Ke4 {[%emt 0:00:01]} (69. Ke2 $16) 69... Rb4+ {[%emt 0:00:01] Weighted Error Value: White=0.14 (very precise) /Black=0.18 (very precise)} 1/2-1/2

[Event "Romanian Rapid Open 2022"]
[Site "Sebes"]
[Date "2022.12.02"]
[Round "6.13"]
[White "Bulmaga, Irina"]
[Black "Zubcu, Vlad-George"]
[Result "1-0"]
[ECO "B42"]
[WhiteElo "2426"]
[BlackElo "2135"]
[Annotator "TA"]
[PlyCount "63"]
[EventDate "2022.12.02"]
[EventType "rapid"]
[EventCountry "ROU"]
[SourceTitle "playchess.com"]
[Source "ChessBase"]
[SourceQuality "1"]
[TimeControl "600+5"]

{[%evp 21,63,-11,22,18,29,36,63,73,71,71,130,127,241,242,243,212,260,264,250,241,506,492,1082,1035,847,742,2066,850,873,637,520,496,771,758,2892,679,654,663,1082,1079,1498,1379,29991,29992]} 1. e4 {[%emt 0:00:01]} c5 {[%emt 0:00:01]} 2. Nf3 {[%emt 0:00:03]} e6 {[%emt 0:00:01]} 3. d4 {[%emt 0:00:02]} cxd4 4. Nxd4 {[%emt 0:00:01]} a6 {[%emt 0:00:07]} 5. Bd3 {[%emt 0:00:03]} Qc7 {[%emt 0:00:12]} 6. O-O {[%emt 0:00:11]} Nf6 {[%emt 0:00:03]} 7. c4 {[%emt 0:00:06]} Nc6 {[%emt 0:00:03]} 8. Nxc6 {[%emt 0:00:15]} dxc6 {[%emt 0:00:20]} 9. f4 {[%emt 0:00:14]} e5 {[%emt 0:00:14]} 10. f5 {[%emt 0:00:54]} Bc5+ {[%emt 0:00:36]} 11. Kh1 {[%emt 0:00:01]} h5 {[%emt 0:00:01]} 12. Qe2 {[%emt 0:00:29] has lost popularity (12.Nc3). B42: Sicilian: Kan Variation: 5 Bd3.} Ng4 {[%emt 0:00:11]} 13. Bg5 {[%emt 0:00:06] Against Qd8} Qb6 {[%emt 0:01:08]} 14. Bh4 {[%emt 0:00:36] Inhibits Nf2+. White is slightly better.} Bd4 {[%emt 0:00:07]} 15. Nc3 {[%emt 0:00:07]} Bxc3 {[%emt 0:01:35]} (15... Qc7 $142) 16. bxc3 $16 {[%emt 0:00:02] [#]} Bd7 $146 {[%emt 0:00:02]} (16... c5 $16 17. Rab1 Qc6) ({Predecessor:} 16... c5 17. Rab1 Qd6 18. Bc2 Nf6 19. Rf3 Nd7 20. Rg3 Qf8 21. Ba4 Rb8 22. Qd1 f6 23. Rb6 Qe7 24. Re6 {1-0 (24) Bengtsson,U (1858)-Andrews,N (1804) IECG email 2001}) 17. Rab1 $18 {[%emt 0:00:17]} Qc7 {[%emt 0:00:36]} 18. c5 {[%emt 0:00:11]} Rb8 {[%emt 0:01:16]} 19. h3 {[%emt 0:00:17]} Nf6 {[%emt 0:00:16]} 20. Bc4 {[%emt 0:00:37]} Qa5 $2 {[%emt 0:00:49]} (20... Kf8 21. Rfd1 Be8) 21. Qe3 {[%emt 0:00:04]} Qa4 {[%emt 0:00:22]} (21... Kf8 $142 22. Rb6 Kg8) 22. Rb4 {[%emt 0:00:15]} Qa5 {[%emt 0:00:30]} 23. Rd1 {[%emt 0:00:54]} Bc8 {[%emt 0:01:01]} 24. Bxf6 {[%emt 0:00:23]} (24. Qg3 $142 Kf8 25. Qxe5) 24... gxf6 {[%emt 0:00:04]} 25. Rb6 {[%emt 0:00:24]} Ke7 {[%emt 0:00:57]} 26. Kh2 {[%emt 0:00:11] [#] aiming for h4.} Rg8 {[%emt 0:00:31]} (26... h4 $142 27. Bxa6 Bxf5 28. exf5 (28. Rxb7+ Rxb7 29. Bxb7 Be6 $16) 28... bxa6 29. Rxc6 Qa4) 27. Rd6 {[%emt 0:00:21] Intending Qh6 and mate.} Qxb6 {[%emt 0:01:03]} 28. cxb6 {[%emt 0:00:16]} (28. Qh6 $142 Rg6 29. fxg6 Qxc5 {[#]} 30. gxf7 $1) 28... Kxd6 {[%emt 0:00:01]} 29. Bxf7 {[%emt 0:00:10]} Rg5 {[%emt 0:00:10]} 30. c4 {[%emt 0:00:09]} c5 {[%emt 0:00:11]} 31. h4 {[%emt 0:00:22] Threatening mate with Qd3+.} Rg4 {[%emt 0:00:03]} 32. Qh6 {[%emt 0:04:43] Black did not feel at home in the position after the opening.   Weighted Error Value: White=0.52/Black=0.94} ({Not} 32. Bxh5 Rxh4+ 33. Kg1 Rxh5 $18) 1-0

[Event "Romanian Rapid Open 2022"]
[Site "Sebes"]
[Date "2022.12.02"]
[Round "6.14"]
[White "Sfarlog, Tudor-Vlad"]
[Black "Stefan, Romulus-Cristian"]
[Result "1/2-1/2"]
[ECO "A25"]
[WhiteElo "2283"]
[BlackElo "2097"]
[Annotator "TA"]
[PlyCount "116"]
[EventDate "2022.12.02"]
[EventType "rapid"]
[EventCountry "ROU"]
[SourceTitle "playchess.com"]
[Source "ChessBase"]
[SourceQuality "1"]
[TimeControl "600+5"]

{[%evp 15,116,22,18,25,35,0,9,0,0,0,17,-26,0,-6,0,0,0,-19,-12,-27,-16,-114,-36,-39,-15,-9,-12,-78,-67,-82,-128,-103,-31,-24,-18,-62,-95,-68,-4,0,0,-9,-7,-22,0,0,4,0,15,14,15,12,12,12,20,20,70,18,32,0,88,88,103,103,103,95,103,103,103,14,91,14,62,39,103,0,62,0,46,28,83,21,103,102,103,58,76,0,0,-8,-8,-8,-8,-8,-8,-8,-8,-8,-8,-8,-8,-8,-8]} 1. Nf3 {[%emt 0:00:01]} g6 {[%emt 0:00:02]} 2. c4 {[%emt 0:00:02]} Bg7 {[%emt 0:00:01]} 3. Nc3 {[%emt 0:00:01]} e5 {[%emt 0:00:01]} 4. g3 {[%emt 0:00:12]} Nc6 {[%emt 0:00:02]} 5. Bg2 {[%emt 0:00:01]} d6 {[%emt 0:00:01]} 6. O-O {[%emt 0:00:02]} Nh6 {[%emt 0:00:01]} 7. d3 {[%emt 0:00:04]} O-O {[%emt 0:00:03]} 8. Rb1 {[%emt 0:00:02]} a5 {[%emt 0:00:03]} 9. a3 {[%emt 0:00:02] A25: English Opening vs King's Indian with ...Nc6 but without early d3.} f5 {[%emt 0:00:01] [#]} 10. Nd2 $146 {[%emt 0:00:28]} ({Predecessor:} 10. Bg5 Qd7 11. Nd5 Kh8 12. b4 axb4 13. axb4 Ng8 14. b5 Nce7 15. Bxe7 Nxe7 16. Nd2 g5 {1-0 (42) Andreev,K (2265)-Torres Dominguez,D (2067) St Petersburg 2018}) 10... f4 {[%emt 0:00:27]} 11. b4 {[%emt 0:00:09]} axb4 {[%emt 0:00:02]} 12. axb4 {[%emt 0:00:02]} Nd4 {[%emt 0:00:31]} 13. Nde4 {[%emt 0:00:16]} (13. e3 $5 {[%cal Re3d4]} Ne6 14. b5 $11) 13... Nhf5 {[%emt 0:00:25]} 14. e3 {[%emt 0:00:29]} Ne6 {[%emt 0:00:06]} 15. Bd2 {[%emt 0:00:46]} Kh8 {[%emt 0:00:36]} 16. Ra1 {[%emt 0:00:24] Prevents c6.} Rxa1 {[%emt 0:00:07]} 17. Qxa1 {[%emt 0:00:02]} c6 {[%emt 0:00:36]} 18. Qa7 {[%emt 0:00:23]} (18. Qa5 $11 {keeps the balance.}) 18... g5 {[%emt 0:00:16]} (18... d5 $17 19. cxd5 cxd5) 19. b5 {[%emt 0:01:05]} g4 {[%emt 0:00:12]} (19... d5 $5 {[%cal Rd5e4]} 20. bxc6 bxc6 21. cxd5 cxd5 $11) 20. bxc6 {[%emt 0:00:14]} (20. gxf4 exf4 21. bxc6 (21. exf4 Nh4 $15) 21... f3 22. cxb7 (22. Bxf3 $2 gxf3 23. Kh1 Qh4 $19) 22... Bxb7 23. Qxb7 fxg2 $19) 20... bxc6 {[%emt 0:00:01] ...f3 is the strong threat.} 21. Rb1 {[%emt 0:00:36]} (21. Rc1 $11) 21... d5 $1 $17 {[%emt 0:00:15]} 22. cxd5 {[%emt 0:00:11]} cxd5 {[%emt 0:00:02]} 23. Nc5 {[%emt 0:00:17] [#]} fxe3 {[%emt 0:00:32]} (23... Ng5 $1 $17 {[%cal Rg5h3] Strongly threatening ...Nh3+.} 24. Qb6 (24. Bxd5 $2 Nh3+ 25. Kg2 fxg3 $19) (24. Nxd5 f3 $11) (24. exf4 exf4 25. Nb3 f3 $15) 24... Nh3+ 25. Bxh3 fxe3 26. Bxe3 (26. Qxd8 Rxd8 27. fxe3 gxh3 $11) 26... Nxe3 27. Qxd8 Rxd8) 24. fxe3 $15 {[%emt 0:00:05]} d4 {[%emt 0:00:34] And now ...Nxc5 would win.} 25. Nxe6 {[%emt 0:00:05]} (25. Nd5 {seems wilder.} dxe3 26. Ba5 Qg5 27. Bb4) 25... Bxe6 {[%emt 0:00:04]} 26. exd4 {[%emt 0:00:11]} Qxd4+ {[%emt 0:00:26]} (26... e4 $1 $15 27. Kh1 e3) 27. Qxd4 $11 {[%emt 0:00:02]} Nxd4 {[%emt 0:00:03]} 28. Be3 {[%emt 0:01:07]} Nf3+ {[%emt 0:00:07]} 29. Bxf3 {[%emt 0:00:15]} gxf3 {[%emt 0:00:08]} 30. Ne4 {[%emt 0:00:01]} Bf5 {[%emt 0:00:25]} 31. Nf2 {[%emt 0:00:18]} h6 {[%emt 0:00:02]} 32. g4 {[%emt 0:00:05]} Bg6 {[%emt 0:00:08]} 33. Rb6 {[%emt 0:00:02]} Kh7 {[%emt 0:00:03]} 34. h4 {[%emt 0:00:28]} Rd8 {[%emt 0:00:00]} 35. Rb3 {[%emt 0:00:07]} Kg8 {[%emt 0:00:51]} (35... h5 $11) 36. Kh2 {[%emt 0:00:03]} ({White should play} 36. h5 $1 $14 Be8 37. Kh2) 36... h5 {[%emt 0:00:55]} 37. g5 {[%emt 0:00:01]} Re8 {[%emt 0:00:10]} (37... e4 $1 $11 38. Rb6 (38. dxe4 Be5+ 39. Kg1 Ra8 $11) 38... Be5+ 39. Kg1 Kf7 40. Rb7+ (40. Nxe4 Rxd3 41. Rb7+ Ke8 $11) (40. dxe4 Kg7 $11) 40... Kg8) 38. Ne4 $16 {[%emt 0:01:01]} Ra8 {[%emt 0:00:52] [#]} 39. Kg3 $1 {[%emt 0:00:08]} Rf8 {[%emt 0:00:17]} 40. Rb6 {[%emt 0:00:43]} Kh7 {[%emt 0:00:09]} 41. Rb7 {[%emt 0:00:08]} Kg8 {[%emt 0:00:03]} 42. Rd7 {[%emt 0:00:12] White has more active pieces.} (42. Bc5 $16 Rf4 43. Nf2) 42... Bf5 {[%emt 0:00:23]} (42... Bxe4 $1 $11 43. dxe4 f2 44. Bxf2 Rf4) 43. Rd6 {[%emt 0:00:07]} (43. Ra7 $16) 43... Bg4 {[%emt 0:00:02]} (43... Bxe4 $1 $11 44. dxe4 f2 45. Bxf2 Rf4) 44. Nf2 {[%emt 0:00:09]} Bf5 {[%emt 0:00:10]} (44... e4 $1 $14 45. Nxg4 (45. Nxe4 Be5+ 46. Kf2 Bxd6 $17) 45... hxg4) 45. Ne4 {[%emt 0:00:28]} (45. Kxf3 $6 Bxd3+ 46. Kg2 Bf5 $11) 45... Bg4 {[%emt 0:00:02]} 46. Rg6 {[%emt 0:00:42]} ({White should try} 46. Rd5 $14) 46... Kh7 {[%emt 0:00:10]} (46... f2 $11 47. Bxf2 (47. Nxf2 Rf3+ 48. Kg2 Rxe3 $17) 47... Rf3+ 48. Kg2 Rxd3) 47. Rb6 {[%emt 0:00:00]} Kg8 {[%emt 0:00:04]} (47... f2 $1 $11 {remains equal.} 48. g6+ (48. Nxf2 $2 Rf3+ 49. Kg2 Rxe3 $19) 48... Kg8 49. Bxf2 (49. Nxf2 $2 Rf3+ 50. Kg2 Rxe3 $19) 49... Bf5) 48. Nf2 {[%emt 0:00:10]} (48. Bc5 $16 Rf4 49. Nf2) 48... Bf5 {[%emt 0:00:02]} (48... e4 $1 $11 49. d4 (49. dxe4 $2 {gets mated.} Be5+) (49. Nxe4 f2 $11) (49. Nxg4 hxg4 50. Kxg4 exd3 $11) 49... Bf5) 49. Rb5 {[%emt 0:00:12]} ({Of course not} 49. Kxf3 $6 Bxd3+ 50. Kg2 Be2 $11) 49... Bg6 {[%emt 0:00:17]} 50. Bd2 {[%emt 0:00:08]} Rd8 {[%emt 0:00:11]} 51. Rb3 {[%emt 0:00:01]} (51. Bc3 $16) 51... e4 $11 {[%emt 0:00:08][%cal Be5e4,Be4d3,Bd3d2][%mdl 32] The position is equal.} 52. Bf4 {[%emt 0:01:00] Inhibits Be5.} exd3 {[%emt 0:00:07]} 53. Kxf3 {[%emt 0:00:02]} d2 {[%emt 0:00:08] aiming for ...Bc2.} 54. Rb8 $132 {[%emt 0:00:21][%mdl 2048] White puts up resistance} Rxb8 {[%emt 0:00:20]} 55. Bxb8 {[%emt 0:00:01]} Bd4 {[%emt 0:00:53] ( -> ...Bxf2)} (55... Bc2 $5 56. Ke2 $8 Bd4 $11) 56. Nd1 {[%emt 0:00:08]} Bc2 {[%emt 0:00:17] A strong pair of Bishops.} (56... Bf5 $5 57. Ke2 $8 Bg4+ 58. Kxd2 Bxd1 59. Kxd1 Bf2 $11) 57. Ke2 {[%emt 0:00:02]} Bxd1+ {[%emt 0:00:02]} 58. Kxd1 {[%emt 0:00:01]} Bf2 {[%emt 0:00:01] Weighted Error Value: White=0.25 (precise) /Black=0.19 (very precise)} 1/2-1/2

[Event "Romanian Rapid Open 2022"]
[Site "Sebes"]
[Date "2022.12.02"]
[Round "6.15"]
[White "Daianu, Cristian-Clement"]
[Black "Secheres, Adrian-Simion"]
[Result "0-1"]
[ECO "B00"]
[WhiteElo "2189"]
[BlackElo "2365"]
[Annotator "TA"]
[PlyCount "60"]
[EventDate "2022.12.02"]
[EventType "rapid"]
[EventCountry "ROU"]
[SourceTitle "playchess.com"]
[Source "ChessBase"]
[SourceQuality "1"]
[TimeControl "600+5"]

{[%evp 9,60,45,47,20,25,0,1,8,91,-39,-35,-31,-31,-29,-27,-50,0,-7,0,-21,4,-42,-3,-8,-2,-116,-82,-88,-110,-177,-166,-516,-492,-566,-523,-588,-580,-1254,-1129,-1092,-1035,-1076,-1041,-1389,-1359,-1813,-1816,-1697,-1601,-5589,-5589,-5561,-731]} 1. e4 {[%emt 0:00:05]} Nc6 {[%emt 0:00:02]} 2. Nf3 {[%emt 0:00:04]} d6 {[%emt 0:00:02]} 3. d4 {[%emt 0:00:06]} Nf6 {[%emt 0:00:02]} 4. Nc3 {[%emt 0:00:30]} g6 {[%emt 0:00:03]} 5. Be2 {[%emt 0:00:06]} Bg7 {[%emt 0:00:02]} 6. h4 {[%emt 0:00:02] B00: Queen's Fianchetto Defence, Nimzowitsch Defence.} O-O {[%emt 0:00:35]} 7. Bg5 {[%emt 0:00:50]} h6 {[%emt 0:00:22]} 8. Bf4 {[%emt 0:00:04] [#] The position is equal.} Nxd4 $146 {[%emt 0:01:26]} ({Predecessor:} 8... Bg4 9. Qd2 Bxf3 10. Bxf3 Nxd4 11. Qxd4 e5 12. Bxe5 dxe5 13. Qb4 Qd4 14. Qb3 Rfd8 {½-½ (48) Novak,I (2345)-Rohacek,M (2100) Bratislava 1998}) 9. Nxd4 {[%emt 0:00:02]} (9. Qxd4 $16 {Strongly threatening Qd2.} e5 10. Nxe5 $1) 9... e5 $15 {[%emt 0:00:01]} 10. Be3 {[%emt 0:00:01] Black must now prevent Nb3.} exd4 {[%emt 0:00:02]} 11. Bxd4 {[%emt 0:00:01]} Re8 {[%emt 0:00:28]} 12. Qd3 {[%emt 0:00:58]} Qe7 {[%emt 0:01:01]} (12... b5 $15) 13. f3 {[%emt 0:00:31]} Be6 {[%emt 0:00:30]} 14. O-O-O {[%emt 0:00:15]} c5 {[%emt 0:01:37] Inhibits g4.} (14... Rad8 $5 {[%cal Rc7c5]}) 15. Bf2 {[%emt 0:00:19]} (15. Bxf6 $11 {feels stronger.} Qxf6 16. Qxd6) 15... Rad8 {[%emt 0:00:26] next ...d5 is good for Black.} (15... d5 $5) 16. g4 {[%emt 0:01:18]} d5 {[%emt 0:00:58]} 17. g5 {[%emt 0:00:02]} (17. e5 $1 $11 {was the only way to keep the balance.} Nd7 18. Nxd5 Bxd5 19. Qxd5) 17... Nh5 {[%emt 0:00:02] Threatens to win with ...c4.} 18. exd5 {[%emt 0:01:45] [#]} Bf5 {[%emt 0:00:02] Prevents Qe4.} 19. Ne4 {[%emt 0:00:02]} (19. d6 $17 Qe6 20. Qb5) 19... Nf4 $36 {[%emt 0:00:13][%mdl 2048] Black is really pushing.} (19... Qe5 20. c3 $11 (20. Bxc5 $2 Qxb2+ 21. Kd2 Nf4 $19)) 20. Qc4 {[%emt 0:00:26]} (20. Qb5 $2 a6 21. Bxc5 axb5 $19) (20. Qd2 {nothing else works.} Qe5 21. c3 (21. c4 Bxe4 22. fxe4 Nxe2+ 23. Qxe2 Qf4+ 24. Qe3 Rxe4 $17) 21... Rxd5 22. Qe3) 20... b5 {[%emt 0:00:37] Black is clearly winning.} (20... Qe5 21. c3 $15) 21. Qxb5 {[%emt 0:01:52]} Rb8 {[%emt 0:00:01] Against c3} 22. d6 {[%emt 0:00:02]} Qe5 {[%emt 0:00:12]} (22... Bxb2+ 23. Qxb2 (23. Kxb2 $2 Qe5+ 24. Kc1 Rxb5 $19) 23... Nxe2+ 24. Kd2 $15) 23. d7 {[%emt 0:00:41]} Rxb5 {[%emt 0:00:35]} ({Weaker is} 23... Bxe4 24. dxe8=Q+ (24. dxe8=R+ Rxe8 $11) 24... Rxe8 {[#]} 25. Bd4 $1 (25. fxe4 $2 {too greedy.} Nxe2+ 26. Kd2 Qxe4 $19) 25... cxd4 26. fxe4 $11) 24. dxe8=Q+ {[%emt 0:00:22]} Qxe8 {[%emt 0:00:02]} 25. Bxb5 {[%emt 0:00:02]} Qxb5 {[%emt 0:00:02]} 26. Rd8+ {[%emt 0:00:02]} Kh7 {[%emt 0:00:03]} 27. Nf6+ {[%emt 0:01:05]} Bxf6 {[%emt 0:00:01]} 28. gxf6 {[%emt 0:00:01]} Qc4 {[%emt 0:00:02][%csl Gf5,LRa2,LRc2][%cal Rc4c2]} 29. Rd2 {[%emt 0:00:14]} Qxa2 {[%emt 0:00:02][%cal Ra2a1]} 30. Rd6 {[%emt 0:00:31]} Qa1+ {[%emt 0:00:03] Weighted Error Value: White=1.41/Black=0.40} (30... Qa4 $142 31. Rd3 Bxd3 32. cxd3 Qa1+ 33. Kc2 Qxh1 34. Be3 Qg2+ 35. Kb3 Nxd3 36. h5 Qxb2+ 37. Kc4 Qc2+ 38. Kb5 Qb3+ 39. Kc6 Qb6+ 40. Kd7 Ne5+ 41. Kc8 Qc6+ 42. Kb8 Nd7+ 43. Kxa7 Qc7+ 44. Ka8 Qb8#) 0-1